fUSD/lending_fUSD_20241106
["ID","MTS","AMOUNT","RATE_DAILY","PERIOD"]
[341509114,1730935855623,-500.0,0.00038628,14]
[341509115,1730935855633,-500.0,0.00038628,14]
[341509116,1730935855642,-500.0,0.00038628,14]
[341509117,1730935855650,-500.0,0.00038628,14]
[341509118,1730935855658,-500.0,0.00038629,14]
[341509119,1730935855667,-500.0,0.00038629,14]
[341509120,1730935855677,-500.0,0.00038629,14]
[341509121,1730935855686,-1414.86,0.00038629,14]
[341509122,1730935855695,-500.0,0.00038629,14]
[341509123,1730935855704,-500.0,0.00038629,14]
[341509124,1730935855714,-503.36613445,0.00038629,14]
[341509125,1730935855723,-500.0,0.00038629,14]
[341509126,1730935855732,-500.0,0.00038629,14]
[341509127,1730935855742,-500.0,0.00038629,14]
[341509128,1730935855754,-694.08,0.00038629,14]
[341509129,1730935855763,-500.0,0.00038629,14]
[341509130,1730935855773,-500.0,0.00038629,14]
[341509131,1730935855783,-500.0,0.00038629,14]
[341509132,1730935855792,-500.0,0.00038629,14]
[341509133,1730935855801,-500.0,0.00038629,14]
[341509134,1730935855810,-500.0,0.00038629,7]
[341509135,1730935855820,-500.0,0.00038629,14]
[341509136,1730935855829,-500.0,0.00038629,14]
[341509137,1730935855838,-865.31,0.00038629,14]
[341509138,1730935855848,-528.47,0.00038629,14]
[341509139,1730935855857,-500.0,0.00038629,14]
[341509140,1730935855866,-500.0,0.00038629,14]
[341509141,1730935855876,-764.35,0.00038629,14]
[341509142,1730935855885,-575.39,0.00038629,14]
[341509143,1730935855895,-500.0,0.00038629,14]
[341509144,1730935855904,-500.0,0.00038629,14]
[341509145,1730935855913,-500.0,0.00038629,14]
[341509146,1730935855923,-500.0,0.00038629,14]
[341509147,1730935855932,-500.0,0.00038629,14]
[341509148,1730935855941,-500.0,0.00038629,14]
[341509149,1730935855950,-500.0,0.00038629,14]
[341509150,1730935855959,-1520.76,0.00038629,14]
[341509151,1730935855968,-500.0,0.00038629,14]
[341509152,1730935855978,-500.0,0.00038629,2]
[341509153,1730935855988,-500.0,0.00038629,14]
[341509154,1730935855999,-500.0,0.00038629,14]
[341509155,1730935856009,-500.0,0.00038629,14]
[341509156,1730935856018,-785.35,0.00038629,14]
[341509157,1730935856027,-500.0,0.00038629,14]
[341509158,1730935856036,-500.0,0.00038629,14]
[341509159,1730935856045,-500.0,0.00038629,14]
[341509160,1730935856054,-365.99272493,0.00038629,14]
[341509161,1730935856063,-638.28772971,0.00038629,14]
[341509162,1730935856072,-150.0,0.00038629,14]
[341509163,1730935856082,-500.0,0.00038629,14]
[341509164,1730935856091,-500.0,0.00038629,14]
[341509165,1730935856099,-561.33,0.0003863,14]
[341509166,1730935856108,-500.0,0.0003863,14]
[341509167,1730935856117,-179.51891775,0.00038682,12]
[341509168,1730935856127,-500.0,0.00038776,60]
[341509169,1730935856136,-209.0,0.0003878,30]
[341509170,1730935856145,-220.0,0.00038782,2]
[341509171,1730935856154,-22136.4326,0.00038792,2]
[341509172,1730935856163,-105527.1924,0.00038792,2]
[341509173,1730935856171,-4236.0497,0.00038793,10]
[341509174,1730935856180,-161199.10668685,0.000388,10]
[341509175,1730935856189,-6902.98910072,0.00038803,2]
[341509176,1730935856198,-162.61651374,0.00038803,2]
[341509177,1730935856207,-500.0,0.00038825,60]
[341509178,1730935856216,-500.0,0.00038825,60]
[341509179,1730935856225,-2047.14869241,0.0003888,15]
[341509180,1730935856234,-3428.18,0.00038881,120]
[341509181,1730935856243,-500.0,0.00038882,2]
[341509182,1730935856256,-901.14,0.00038882,14]
[341509183,1730935856265,-1428.18,0.00038882,14]
[341509184,1730935856274,-500.0,0.00038882,14]
[341509185,1730935856283,-501.77686874,0.00038882,14]
[341509186,1730935856293,-356.59694494,0.00038882,14]
[341509187,1730935856303,-500.0,0.00038882,14]
[341509188,1730935856313,-500.0,0.00038882,14]
[341509189,1730935856322,-512.17127161,0.00038882,14]
[341509190,1730935856331,-500.0,0.00038882,14]
[341509191,1730935856341,-500.0,0.00038882,14]
[341509192,1730935856350,-500.0,0.00038882,14]
[341509193,1730935856359,-500.0,0.00038882,14]
[341509194,1730935856368,-500.0,0.00038882,14]
[341509195,1730935856377,-500.0,0.00038882,14]
[341509196,1730935856387,-559.0,0.00038882,14]
[341509197,1730935856396,-500.0,0.00038882,14]
[341509198,1730935856405,-513.85185072,0.00038882,14]
[341509199,1730935856414,-500.0,0.00038882,14]
[341509200,1730935856423,-1000.0,0.00038883,14]
[341509201,1730935856432,-559.65,0.00038883,14]
[341509202,1730935856441,-1697.51,0.00038883,14]
[341509203,1730935856451,-500.0,0.00038883,14]
[341509204,1730935856460,-3386.83,0.00038883,14]
[341509205,1730935856469,-1669.15,0.00038883,14]
[341509206,1730935856479,-549.63,0.00038883,14]
[341509207,1730935856489,-1618.64,0.00038883,14]
[341509208,1730935856503,-916.58,0.00038883,14]
[341509209,1730935856513,-743.91,0.00038883,14]
[341509210,1730935856522,-2024.45,0.00038883,14]
[341509211,1730935856532,-4406.44,0.00038883,14]
[341509212,1730935856542,-500.0,0.00038883,14]
[341509213,1730935856550,-1241.15,0.00038883,14]
[341509214,1730935856559,-2498.48,0.00038883,14]
[341509215,1730935856569,-500.0,0.00038883,14]
[341509216,1730935856578,-588.09,0.00038883,14]
[341509217,1730935856588,-500.0,0.00038883,14]
[341509218,1730935856597,-1558.89,0.00038883,14]
[341509219,1730935856605,-5020.8,0.00038883,14]
[341509220,1730935856613,-892.24,0.00038883,14]
[341509221,1730935856622,-500.0,0.00038883,14]
[341509222,1730935856632,-500.0,0.00038883,14]
[341509223,1730935856641,-500.0,0.00038883,14]
[341509224,1730935856650,-2523.88,0.00038883,14]
[341509225,1730935856659,-500.0,0.00038883,14]
[341509226,1730935856669,-2246.69,0.00038883,14]
[341509227,1730935856679,-500.0,0.00038883,14]
[341509228,1730935856689,-500.0,0.00038891,14]
[341509229,1730935856698,-2490.43,0.00038891,14]
[341509230,1730935856708,-618.81,0.00038891,14]
[341509231,1730935856717,-500.0,0.00038891,14]
[341509232,1730935856726,-884.02,0.00038891,14]
[341509233,1730935856736,-2024.02,0.00038891,14]
[341509234,1730935856745,-884.81,0.00038891,14]
[341509235,1730935856758,-9425.0,0.00038891,14]
[341509236,1730935856767,-1855.81,0.00038891,14]
[341509237,1730935856777,-500.0,0.00038891,14]
[341509238,1730935856787,-1189.71,0.00038891,14]
[341509239,1730935856796,-2336.05,0.00038891,14]
[341509240,1730935856805,-1170.71,0.00038891,14]
[341509241,1730935856815,-1893.02,0.00038891,14]
[341509242,1730935856824,-565.13,0.00038891,14]
[341509243,1730935856834,-527.15,0.00038891,14]
[341509244,1730935856843,-500.0,0.00038891,14]
[341509245,1730935856852,-2788.5,0.00038891,14]
[341509246,1730935856863,-1783.35,0.00038891,14]
[341509247,1730935856873,-1583.98,0.00038891,14]
[341509248,1730935856884,-5930.77,0.00038891,14]
[341509249,1730935856894,-659.98,0.00038891,14]
[341509250,1730935856903,-2398.61,0.00038891,14]
[341509251,1730935856912,-500.0,0.00038891,14]
[341509252,1730935856922,-2181.47,0.00038891,14]
[341509253,1730935856931,-1024.31,0.00038891,14]
[341509254,1730935856941,-1827.69,0.00038891,14]
[341509255,1730935856950,-500.0,0.00038891,14]
[341509256,1730935856959,-2000.0,0.00038891,120]
[341509257,1730935856968,-806.81,0.00038891,14]
[341509258,1730935856978,-2998.5,0.00038892,14]
[341509259,1730935856987,-867.03,0.00038892,14]
[341509260,1730935856996,-5912.57,0.00038892,14]
[341509261,1730935857011,-1175.49,0.00038892,14]
[341509262,1730935857020,-500.0,0.00038892,14]
[341509263,1730935857029,-1095.34,0.00038892,14]
[341509264,1730935857038,-655.58,0.00038892,14]
[341509265,1730935857047,-500.0,0.00038892,14]
[341509266,1730935857056,-1690.79,0.00038892,14]
[341509267,1730935857065,-1026.91,0.00038892,14]
[341509268,1730935857075,-6196.07,0.00038892,14]
[341509269,1730935857084,-500.0,0.00038892,14]
[341509270,1730935857094,-1663.48,0.00038892,14]
[341509271,1730935857103,-1911.07,0.00038892,14]
[341509272,1730935857113,-2384.56,0.00038893,14]
[341509273,1730935857125,-505.61149781,0.00038893,14]
[341509274,1730935857133,-500.0,0.00038893,14]
[341509275,1730935857144,-500.0,0.00038893,14]
[341509276,1730935857155,-500.0,0.00038893,14]
[341509277,1730935857165,-1472.82,0.00038893,14]
[341509278,1730935857173,-500.0,0.00038893,14]
[341509279,1730935857183,-500.0,0.00038893,14]
[341509280,1730935857192,-500.0,0.00038893,14]
[341509281,1730935857202,-500.0,0.00038893,14]
[341509282,1730935857212,-500.0,0.00038893,14]
[341509283,1730935857221,-500.0,0.00038893,14]
[341509284,1730935857234,-500.0,0.00038893,14]
[341509285,1730935857244,-500.0,0.00038893,14]
[341509286,1730935857255,-500.0,0.00038893,14]
[341509287,1730935857264,-548.45630875,0.00038893,14]
[341509288,1730935857273,-500.0,0.00038893,14]
[341509289,1730935857282,-500.0,0.00038893,14]
[341509290,1730935857291,-500.0,0.00038893,14]
[341509291,1730935857300,-578.83,0.00038893,14]
[341509292,1730935857309,-523.8566116,0.00038893,14]
[341509293,1730935857318,-500.0,0.00038893,14]
[341509294,1730935857327,-500.0,0.00038893,14]
[341509295,1730935857336,-500.0,0.00038893,14]
[341509296,1730935857346,-566.26898682,0.00038893,14]
[341509297,1730935857355,-519.16003673,0.00038893,14]
[341509298,1730935857364,-500.0,0.00038893,14]
[341509299,1730935857373,-500.0,0.00038893,14]
[341509300,1730935857382,-699.52,0.00038893,14]
[341509301,1730935857391,-500.0,0.00038893,14]
[341509302,1730935857401,-500.0,0.00038893,14]
[341509303,1730935857410,-500.0,0.00038893,14]
[341509304,1730935857418,-500.0,0.00038893,14]
[341509305,1730935857427,-500.0,0.00038893,14]
[341509306,1730935857436,-1766.86,0.00038893,14]
[341509307,1730935857445,-500.0,0.00038893,14]
[341509308,1730935857454,-877.09,0.00038893,14]
[341509309,1730935857465,-500.0,0.00038893,14]
[341509310,1730935857475,-1734.88,0.00038893,14]
[341509311,1730935857484,-500.0,0.00038893,14]
[341509312,1730935857495,-500.0,0.00038893,14]
[341509313,1730935857506,-500.0,0.00038893,14]
[341509314,1730935857515,-500.0,0.00038893,14]
[341509315,1730935857524,-500.0,0.00038893,14]
[341509316,1730935857533,-446.50584306,0.00038893,14]
[341509317,1730935857542,-3562.91,0.00038893,14]
[341509318,1730935857551,-2666.42,0.00038893,14]
[341509319,1730935857560,-500.0,0.00038893,14]
[341509320,1730935857571,-670.44,0.00038893,14]
[341509321,1730935857581,-500.0,0.00038893,14]
[341509322,1730935857590,-2099.32,0.00038893,14]
[341509323,1730935857599,-539.63575592,0.00038893,14]
[341509324,1730935857608,-500.0,0.00038893,14]
[341509325,1730935857617,-500.0,0.00038893,14]
[341509326,1730935857626,-500.0,0.00038893,14]
[341509327,1730935857635,-619.29,0.00038893,14]
[341509328,1730935857644,-1467.2,0.00038893,14]
[341509329,1730935857653,-539.05914741,0.00038893,14]
[341509330,1730935857662,-500.0,0.00038893,14]
[341509331,1730935857671,-535.96375817,0.00038893,14]
[341509332,1730935857680,-500.0,0.00038893,14]
[341509333,1730935857689,-531.56734677,0.00038893,14]
[341509334,1730935857698,-500.0,0.00038893,14]
[341509335,1730935857707,-500.0,0.00038893,14]
[341509336,1730935857717,-701.74,0.00038893,14]
[341509337,1730935857725,-782.26,0.00038893,14]
[341509338,1730935857734,-500.0,0.00038893,14]
[341509339,1730935857742,-500.0,0.00038893,14]
[341509340,1730935857753,-759.17,0.00038893,14]
[341509341,1730935857762,-500.0,0.00038893,14]
[341509342,1730935857771,-1051.66,0.00038893,14]
[341509343,1730935857780,-703.21,0.00038893,14]
[341509344,1730935857789,-500.0,0.00038893,14]
[341509345,1730935857799,-500.0,0.00038893,14]
[341509346,1730935857808,-500.0,0.00038893,14]
[341509347,1730935857818,-500.0,0.00038893,14]
[341509348,1730935857827,-500.0,0.00038893,14]
[341509349,1730935857836,-500.0,0.00038893,14]
[341509350,1730935857845,-500.0,0.00038893,14]
[341509351,1730935857854,-500.0,0.00038893,14]
[341509352,1730935857864,-500.0,0.00038893,14]
[341509353,1730935857873,-500.0,0.00038893,14]
[341509354,1730935857882,-2821.73,0.00038893,14]
[341509355,1730935857892,-500.0,0.00038893,14]
[341509356,1730935857901,-500.0,0.00038893,14]
[341509357,1730935857911,-672.03,0.00038893,14]
[341509358,1730935857921,-500.0,0.00038893,14]
[341509359,1730935857930,-500.0,0.00038893,14]
[341509360,1730935857940,-500.0,0.00038893,14]
[341509361,1730935857948,-502.7386531,0.00038893,14]
[341509362,1730935857958,-500.0,0.00038893,14]
[341509363,1730935857967,-500.0,0.00038893,14]
[341509364,1730935857976,-500.0,0.00038893,14]
[341509365,1730935857985,-500.0,0.00038893,14]
[341509366,1730935857994,-500.0,0.00038893,14]
[341509367,1730935858004,-1844.7,0.00038893,14]
[341509368,1730935858014,-500.0,0.00038893,14]
[341509369,1730935858023,-500.0,0.00038893,14]
[341509370,1730935858032,-780.24,0.00038893,14]
[341509371,1730935858042,-501.28,0.00038893,14]
[341509372,1730935858050,-2145.45,0.00038893,14]
[341509373,1730935858059,-500.0,0.00038893,14]
[341509374,1730935858068,-354.35755614,0.00038893,14]
[341509375,1730935858077,-500.0,0.00038893,14]
[341509376,1730935858086,-500.0,0.00038893,14]
[341509377,1730935858095,-2053.7,0.00038893,14]
[341509378,1730935858104,-500.0,0.00038893,14]
[341509379,1730935858113,-500.0,0.00038893,14]
[341509380,1730935858122,-1660.46,0.00038893,14]
[341509381,1730935858130,-827.04,0.00038893,14]
[341509382,1730935858139,-500.0,0.00038893,14]
[341509383,1730935858148,-1694.89,0.00038893,14]
[341509384,1730935858157,-500.0,0.00038893,14]
[341509385,1730935858166,-500.0,0.00038893,14]
[341509386,1730935858175,-500.0,0.00038893,14]
[341509387,1730935858184,-500.0,0.00038893,14]
[341509388,1730935858194,-500.0,0.00038893,14]
[341509389,1730935858203,-800.12,0.00038893,14]
[341509390,1730935858214,-870.22,0.00038893,14]
[341509391,1730935858225,-500.0,0.00038893,14]
[341509392,1730935858235,-1325.09,0.00038893,14]
[341509393,1730935858246,-500.0,0.00038893,14]
[341509394,1730935858257,-500.0,0.00038893,14]
[341509395,1730935858265,-1383.48,0.00038893,14]
[341509396,1730935858275,-500.0,0.00038893,14]
[341509397,1730935858284,-1761.32,0.00038893,14]
[341509398,1730935858293,-500.0,0.00038893,14]
[341509399,1730935858302,-687.78,0.00038893,14]
[341509400,1730935858312,-500.0,0.00038893,14]
[341509401,1730935858321,-500.0,0.00038893,14]
[341509402,1730935858330,-500.0,0.00038893,14]
[341509403,1730935858340,-500.0,0.00038893,14]
[341509404,1730935858349,-500.0,0.00038893,14]
[341509405,1730935858360,-797.68,0.00038893,14]
[341509406,1730935858369,-500.0,0.00038893,14]
[341509407,1730935858380,-980.1,0.00038893,14]
[341509408,1730935858389,-800.63,0.00038893,14]
[341509409,1730935858399,-500.0,0.00038893,14]
[341509410,1730935858407,-1734.23,0.00038893,14]
[341509411,1730935858415,-500.0,0.00038893,14]
[341509412,1730935858424,-785.96,0.00038893,14]
[341509413,1730935858434,-500.0,0.00038893,14]
[341509414,1730935858443,-500.0,0.00038893,14]
[341509415,1730935858453,-571.35,0.00038893,14]
[341509416,1730935858463,-500.0,0.00038893,14]
[341509417,1730935858472,-500.0,0.00038893,14]
[341509418,1730935858481,-520.68582657,0.00038893,14]
[341509419,1730935858492,-504.67951641,0.00038893,14]
[341509420,1730935858504,-687.13,0.00038893,14]
[341509421,1730935858513,-517.73,0.00038893,14]
[341509422,1730935858522,-723.89,0.00038893,14]
[341509423,1730935858531,-848.19,0.00038893,14]
[341509424,1730935858540,-1024.78,0.00038893,14]
[341509425,1730935858551,-500.0,0.00038893,14]
[341509426,1730935858561,-402.8135253,0.00038893,14]
[341509427,1730935858572,-500.0,0.00038893,14]
[341509428,1730935858581,-532.57503242,0.00038893,14]
[341509429,1730935858591,-500.0,0.00038893,14]
[341509430,1730935858601,-537.84,0.00038893,14]
[341509431,1730935858611,-528.57,0.00038893,14]
[341509432,1730935858622,-547.05,0.00038893,14]
[341509433,1730935858633,-500.0,0.00038893,14]
[341509434,1730935858642,-500.0,0.00038893,14]
[341509435,1730935858651,-913.25,0.00038893,14]
[341509436,1730935858660,-500.0,0.00038893,14]
[341509437,1730935858669,-1129.12,0.00038893,14]
[341509438,1730935858677,-814.97,0.00038893,14]
[341509439,1730935858686,-500.0,0.00038893,14]
[341509440,1730935858696,-500.0,0.00038893,14]
[341509441,1730935858705,-500.0,0.00038893,14]
[341509442,1730935858714,-500.0,0.00038893,14]
[341509443,1730935858724,-725.53,0.00038893,14]
[341509444,1730935858733,-802.7,0.00038893,14]
[341509445,1730935858743,-527.58657989,0.00038893,14]
[341509446,1730935858752,-742.76,0.00038893,14]
[341509447,1730935858762,-500.0,0.00038893,14]
[341509448,1730935858771,-841.49,0.00038893,14]
[341509449,1730935858780,-500.0,0.00038893,14]
[341509450,1730935858789,-500.0,0.00038893,14]
[341509451,1730935858799,-1613.34,0.00038893,14]
[341509452,1730935858808,-297.58340757,0.00038893,14]
[341509453,1730935858817,-500.0,0.00038893,14]
[341509454,1730935858827,-500.0,0.00038893,14]
[341509455,1730935858836,-2171.76,0.00038893,14]
[341509456,1730935858846,-1488.43,0.00038893,14]
[341509457,1730935858855,-500.0,0.00038893,14]
[341509458,1730935858865,-500.0,0.00038893,14]
[341509459,1730935858875,-500.0,0.00038893,14]
[341509460,1730935858884,-596.95,0.00038893,14]
[341509461,1730935858894,-500.0,0.00038893,14]
[341509462,1730935858903,-500.0,0.00038893,14]
[341509463,1730935858913,-500.0,0.00038893,14]
[341509464,1730935858923,-500.0,0.00038893,14]
[341509465,1730935858932,-500.0,0.00038893,14]
[341509466,1730935858942,-500.0,0.00038893,14]
[341509467,1730935858952,-533.34,0.00038893,14]
[341509468,1730935858962,-500.0,0.00038893,14]
[341509469,1730935858972,-1096.84,0.00038893,14]
[341509470,1730935858982,-500.0,0.00038893,14]
[341509471,1730935858992,-500.0,0.00038893,14]
[341509472,1730935859002,-500.0,0.00038893,14]
[341509473,1730935859011,-500.0,0.00038893,14]
[341509474,1730935859021,-627.91,0.00038893,14]
[341509475,1730935859030,-500.0,0.00038893,14]
[341509476,1730935859040,-1293.23,0.00038893,14]
[341509477,1730935859050,-500.0,0.00038893,14]
[341509478,1730935859059,-643.95,0.00038893,14]
[341509479,1730935859070,-506.49737585,0.00038893,14]
[341509480,1730935859079,-500.0,0.00038893,14]
[341509481,1730935859088,-500.0,0.00038893,14]
[341509482,1730935859097,-500.0,0.00038893,14]
[341509483,1730935859107,-451.89843089,0.00038893,14]
[341509484,1730935859116,-708.5,0.00038893,14]
[341509485,1730935859126,-755.13,0.00038893,14]
[341509486,1730935859147,-679.15,0.00038893,14]
[341509487,1730935859157,-500.0,0.00038893,14]
[341509488,1730935859167,-252.76034366,0.00038893,14]
[341509489,1730935859177,-500.0,0.00038893,14]
[341509490,1730935859187,-2112.79,0.00038893,14]
[341509491,1730935859197,-500.0,0.00038893,14]
[341509492,1730935859206,-749.03,0.00038893,14]
[341509493,1730935859216,-507.93877036,0.00038893,14]
[341509494,1730935859235,-500.0,0.00038893,14]
[341509495,1730935859245,-500.0,0.00038893,14]
[341509496,1730935859256,-500.0,0.00038893,14]
[341509497,1730935859266,-1524.46,0.00038893,14]
[341509498,1730935859276,-500.0,0.00038893,14]
[341509499,1730935859287,-1382.68,0.00038893,14]
[341509500,1730935859297,-1974.65,0.00038893,14]
[341509501,1730935859307,-1470.66,0.00038893,14]
[341509502,1730935859317,-1825.6,0.00038893,14]
[341509503,1730935859327,-1368.43,0.00038893,14]
[341509504,1730935859338,-3596.05,0.00038893,14]
[341509505,1730935859347,-500.0,0.00038893,14]
[341509506,1730935859357,-500.0,0.00038893,14]
[341509507,1730935859367,-1186.0,0.00038893,14]
[341509508,1730935859377,-676.35,0.00038893,14]
[341509509,1730935859387,-500.0,0.00038893,14]
[341509510,1730935859397,-500.0,0.00038893,14]
[341509511,1730935859407,-5295.62,0.00038893,14]
[341509512,1730935859418,-505.67569037,0.00038893,14]
[341509513,1730935859428,-1184.81,0.00038893,14]
[341509514,1730935859439,-500.0,0.00038893,14]
[341509515,1730935859448,-1293.38,0.00038893,14]
[341509516,1730935859458,-544.61,0.00038893,14]
[341509517,1730935859468,-500.0,0.00038893,14]
[341509518,1730935859478,-618.4,0.00038893,14]
[341509519,1730935859489,-1278.85,0.00038893,14]
[341509520,1730935859504,-500.0,0.00038893,14]
[341509521,1730935859514,-2862.34,0.00038893,14]
[341509522,1730935859524,-500.0,0.00038893,14]
[341509523,1730935859535,-500.0,0.00038893,14]
[341509524,1730935859545,-500.0,0.00038893,14]
[341509525,1730935859556,-1136.01,0.00038893,14]
[341509526,1730935859567,-1387.72,0.00038893,14]
[341509527,1730935859578,-500.0,0.00038893,14]
[341509528,1730935859589,-500.0,0.00038893,14]
[341509529,1730935859600,-500.0,0.00038893,14]
[341509530,1730935859612,-675.75,0.00038893,14]
[341509531,1730935859624,-500.0,0.00038893,14]
[341509532,1730935859635,-746.23,0.00038893,14]
[341509533,1730935859648,-1940.26,0.00038893,14]
[341509534,1730935859659,-500.0,0.00038893,14]
[341509535,1730935859669,-220.42126162,0.00038893,14]
[341509536,1730935859679,-500.0,0.00038893,14]
[341509537,1730935859689,-179.72809669,0.00038893,14]
[341509538,1730935859700,-3054.54,0.00038893,14]
[341509539,1730935859710,-648.09,0.00038893,14]
[341509540,1730935859721,-1857.08,0.00038893,14]
[341509541,1730935859731,-680.69,0.00038893,14]
[341509542,1730935859741,-500.0,0.00038893,14]
[341509543,1730935859753,-1476.73,0.00038893,14]
[341509544,1730935859764,-500.0,0.00038893,14]
[341509545,1730935859774,-736.51,0.00038893,14]
[341509546,1730935859784,-500.0,0.00038893,14]
[341509547,1730935859794,-652.58,0.00038893,14]
[341509548,1730935859805,-500.0,0.00038893,14]
[341509549,1730935859815,-634.66,0.00038893,14]
[341509550,1730935859826,-500.0,0.00038893,14]
[341509551,1730935859837,-3196.2,0.00038893,14]
[341509552,1730935859848,-944.32,0.00038893,14]
[341509553,1730935859858,-1204.37,0.00038893,14]
[341509554,1730935859869,-500.0,0.00038893,14]
[341509555,1730935859880,-500.0,0.00038893,14]
[341509556,1730935859891,-500.0,0.00038893,14]
[341509557,1730935859901,-500.0,0.00038893,14]
[341509558,1730935859912,-500.0,0.00038893,14]
[341509559,1730935859922,-869.25,0.00038893,7]
[341509560,1730935859932,-500.0,0.00038893,14]
[341509561,1730935859943,-500.0,0.00038893,14]
[341509562,1730935859953,-1325.37,0.00038893,14]
[341509563,1730935859964,-1205.98,0.00038893,14]
[341509564,1730935859974,-500.0,0.00038893,14]
[341509565,1730935859984,-500.0,0.00038893,14]
[341509566,1730935859994,-535.9271883,0.00038893,14]
[341509567,1730935860005,-2627.44,0.00038893,14]
[341509568,1730935860016,-1240.71,0.00038893,14]
[341509569,1730935860025,-500.0,0.00038893,14]
[341509570,1730935860035,-500.0,0.00038893,14]
[341509571,1730935860046,-2624.71,0.00038893,14]
[341509572,1730935860056,-498.51385997,0.00038893,14]
[341509573,1730935860067,-1160.44,0.00038893,7]
[341509574,1730935860078,-500.0,0.00038893,14]
[341509575,1730935860088,-2083.4,0.00038893,14]
[341509576,1730935860098,-2115.3,0.00038893,14]
[341509577,1730935860108,-943.3,0.00038893,14]
[341509578,1730935860118,-500.0,0.00038893,14]
[341509579,1730935860128,-2430.46,0.00038893,14]
[341509580,1730935860138,-500.0,0.00038893,14]
[341509581,1730935860148,-500.0,0.00038893,14]
[341509582,1730935860158,-500.0,0.00038893,14]
[341509583,1730935860168,-1347.43,0.00038893,14]
[341509584,1730935860178,-911.43,0.00038893,14]
[341509585,1730935860188,-500.0,0.00038893,14]
[341509586,1730935860198,-959.58,0.00038893,14]
[341509587,1730935860208,-500.0,0.00038893,14]
[341509588,1730935860219,-500.0,0.00038893,14]
[341509589,1730935860229,-3985.95,0.00038893,14]
[341509590,1730935860239,-635.46,0.00038893,14]
[341509591,1730935860250,-602.8,0.00038893,14]
[341509592,1730935860262,-500.0,0.00038893,14]
[341509593,1730935860272,-500.0,0.00038893,14]
[341509594,1730935860282,-500.0,0.00038893,14]
[341509595,1730935860292,-500.0,0.00038893,14]
[341509596,1730935860302,-701.82,0.00038893,14]
[341509597,1730935860313,-1320.89,0.00038893,14]
[341509598,1730935860323,-3545.69,0.00038893,14]
[341509599,1730935860333,-500.0,0.00038893,14]
[341509600,1730935860343,-500.0,0.00038893,14]
[341509601,1730935860353,-500.0,0.00038893,14]
[341509602,1730935860363,-500.0,0.00038893,14]
[341509603,1730935860373,-1053.14,0.00038893,14]
[341509604,1730935860383,-2340.4,0.00038893,14]
[341509605,1730935860393,-566.92207966,0.00038893,14]
[341509606,1730935860403,-500.0,0.00038893,14]
[341509607,1730935860413,-500.0,0.00038893,14]
[341509608,1730935860424,-774.57,0.00038893,14]
[341509609,1730935860433,-3797.0,0.00038893,14]
[341509610,1730935860443,-500.0,0.00038893,14]
[341509611,1730935860453,-500.0,0.00038893,14]
[341509612,1730935860463,-1099.55,0.00038893,14]
[341509613,1730935860473,-4343.45,0.00038893,14]